Cogmind - Beta 14 *** ADVENTURER MODE // 2025.03.18 @ 07:56:31 // Winter2019/RPGLIKE Player: Gallgagger Result: Self-destructed Performance ------------- Evolutions (4) 2000 Regions Visited (14) 2800 Robots Destroyed (266) 1330 Value Destroyed (10053) 10053 Prototype IDs (31) 620 Alien Tech Used (0) 0 Bonus (3205) 3205 TOTAL SCORE: 20008 Bonus ------- High Alert Combat Kills 1993 Follower Combat Kills 112 Entered Garrisons 800 Aligned with FarCom 300 Cogmind --------- Core Integrity 589/600 Matter 290/300 Energy 229/230 System Corruption 0% Temperature Cool (2) Movement Flying (37) Location -6/Factory Parts ------- > --- POWER (2) -------- Light Nuclear Core Light Neutrino Core > --- PROPULSION (4) --- Nuclear Pulse Array Nuclear Pulse Array > --- UTILITY (10) ----- Experimental Sensor Array Improved Signal Interpreter Makeshift Terrain Scanner Improved Salvage Targeting Computer Improved Salvage Targeting Computer Targeting Computer Experimental Targeting Computer Improved Armor Integrity Analyzer Advanced Weapon Cycler Improved Medium Armor Plating > --- WEAPON (2) ------- 8R-AWN's Boregun 8R-AWN's Boregun > --- INVENTORY (3) ---- (None) Peak State ------------ > --- POWER ------------ Light Nuclear Core Light Neutrino Core > --- PROPULSION ------- Nuclear Pulse Array Nuclear Pulse Array > --- UTILITY ---------- Experimental Sensor Array Improved Signal Interpreter Makeshift Terrain Scanner Improved Salvage Targeting Computer Improved Salvage Targeting Computer Experimental Targeting Computer Improved Armor Integrity Analyzer Advanced Weapon Cycler Improved Medium Armor Plating Layered Light Armor Plating > --- WEAPON ----------- 8R-AWN's Boregun 8R-AWN's Boregun > --- INVENTORY -------- Authchip [R/Combat] Authchip [R/Combat] Authchip [R/Combat] [Rating: 111] Favorites ----------- Power Light Nuclear Core Engine Ion Engine Power Core Light Nuclear Core Propulsion Nuclear Pulse Array Leg Advanced Myomer Leg Wheel Compact Wheel Flight Unit Nuclear Pulse Array Utility Improved Salvage Targeting Computer Device Experimental Sensor Array Processor Improved Salvage Targeting Computer Hackware Authchip [R/Combat] Protection Improved Medium Armor Plating Weapon 8R-AWN's Boregun Energy Gun Particle Gun Ballistic Gun 8R-AWN's Boregun Slashing Weapon Mining Claw Build | -11 -10 -10 -10 -9 -8 -8 -8 -8 -8 -8 -8 -8 -7 -6 ------- Run | Yrd Mat Min Exi Min Mat Gar Mat Gar Mat Gar Mat Gar Fac Fac Slots Evolved 14 | 4 2 1 . . 3 1 . 2 . . . . 1 . Power 1 | 1 . . . . . . . . . . . . . . Propulsion 3 | 1 1 . . . 1 . . . . . . . . . Utility 9 | 1 1 1 . . 2 1 . 2 . . . . 1 . Weapon 1 | 1 . . . . . . . . . . . . . . Parts Attached 57 | 7 8 5 21 1 5 3 . 2 . . . . 5 . Power 4 | 2 . 1 1 . . . . . . . . . . . Engine 2 | 2 . . . . . . . . . . . . . . Core 2 | . . 1 1 . . . . . . . . . . . Reactor . | . . . . . . . . . . . . . . . Propulsion 14 | 2 3 . 5 . 2 2 . . . . . . . . Treads . | . . . . . . . . . . . . . . . Leg 1 | . . . 1 . . . . . . . . . . . Wheel 2 | 2 . . . . . . . . . . . . . . Hover . | . . . . . . . . . . . . . . . Flight 11 | . 3 . 4 . 2 2 . . . . . . . . Utility 26 | 1 3 2 8 1 3 1 . 2 . . . . 5 . Device 10 | 1 1 1 4 1 2 . . . . . . . . . Storage . | . . . . . . . . . . . . . . . Processor 7 | . 1 . 2 . 1 . . 2 . . . . 1 . Hackware 3 | . . . . . . . . . . . . . 3 . Protection 6 | . 1 1 2 . . 1 . . . . . . 1 . Artifact . | . . . . . . . . . . . . . . . Weapon 13 | 2 2 2 7 . . . . . . . . . . . Energy Gun 4 | 2 1 1 . . . . . . . . . . . . Energy Cannon . | . . . . . . . . . . . . . . . Ballistic Gun 6 | . . 1 5 . . . . . . . . . . . Ballistic Cannon . | . . . . . . . . . . . . . . . Launcher . | . . . . . . . . . . . . . . . Special Weapon . | . . . . . . . . . . . . . . . Impact Weapon . | . . . . . . . . . . . . . . . Slashing Weapon 3 | . 1 . 2 . . . . . . . . . . . Piercing Weapon . | . . . . . . . . . . . . . . . Special Melee Weapon . | . . . . . . . . . . . . . . . Unidentified Prototypes 6 | . . . 4 1 1 . . . . . . . . . Parts Lost . | . . . . . . . . . . . . . . . Power . | . . . . . . . . . . . . . . . Propulsion . | . . . . . . . . . . . . . . . Utility . | . . . . . . . . . . . . . . . Weapon . | . . . . . . . . . . . . . . . Highest Loss Streak . | . . . . . . . . . . . . . . . To Critical Strikes . | . . . . . . . . . . . . . . . Average Slot Usage (%) 91 | . 99 100 92 90 97 90 86 87 88 88 88 88 85 88 Engine 5 | . 24 13 6 . . . . . . . . . . . Core 10 | . . 5 11 18 16 13 13 11 11 11 11 11 11 11 Wheel 3 | . 22 . . . . . . . . . . . . . Flight 15 | . 3 29 27 27 31 18 13 11 11 11 11 11 11 11 Device 17 | . 22 19 16 9 14 20 20 18 17 17 17 17 16 16 Processor 18 | . 1 9 11 18 16 20 20 25 29 29 29 29 27 33 Protection 3 | . . 3 6 . . . 6 5 5 5 5 5 5 5 Energy Gun 3 | . 20 8 . . . . . . . . . . . . Ballistic Gun 9 | . . 1 6 18 16 13 13 11 11 11 11 11 11 11 Slashing Weapon 1 | . 3 9 7 . . . . . . . . . . . Peak Build Rating 111 | 9 13 16 58 65 79 98 98 107 107 107 107 107 111 107 Average Rating 70 | 4 10 14 31 58 66 89 98 103 107 107 107 107 106 107 On Entrance 71 | . 9 13 16 56 59 79 98 98 107 107 107 107 107 107 Naked Turns . | . . . . . . . . . . . . . . . Heaviest Build 35 | 12 15 20 27 26 28 35 35 35 35 35 35 35 35 35 Greatest Support 36 | 32 32 22 26 26 31 36 36 36 36 36 36 36 36 36 Greatest Overweight (x) 1 | . . . 1 . . . . . . . . . . . Average Overweight (x) . | . . . . . . . . . . . . . . . Largest Inventory Capacity 3 | . 1 2 2 2 2 2 2 3 3 3 3 3 3 3 Average Capacity 2 | . . 1 2 2 2 2 2 2 3 3 3 3 3 3 Most Carried 3 | . 1 2 2 2 2 . . 3 3 3 3 3 3 . Average Carried 1 | . . 1 . 2 1 . . 1 3 3 3 3 2 . Final Capacity 3 | . 1 2 2 2 2 2 2 3 3 3 3 3 3 3 Final Carried 3 | . 1 2 2 2 . . . 3 3 3 3 3 . . Class Distribution -------------------- 51% | Scavenger-Scout 22% | Mutant 20% | Scavenger-Mutant 3% | Commander-Scout Dominant Class ---------------- Mutant | -10/Materials Mutant | -10/Mines Scavenger-Mutant | -10/Exiles Scavenger-Mutant | -9/Mines Scavenger-Mutant | -8/Materials Scavenger-Scout | -8/Garrison Scavenger-Scout | -8/Materials Scavenger-Scout | -8/Garrison Scavenger-Scout | -8/Materials Scavenger-Scout | -8/Garrison Scavenger-Scout | -8/Materials Scavenger-Scout | -8/Garrison Scavenger-Scout | -7/Factory Scavenger-Scout | -6/Factory Resources | -11 -10 -10 -10 -9 -8 -8 -8 -8 -8 -8 -8 -8 -7 -6 ----------- Run | Yrd Mat Min Exi Min Mat Gar Mat Gar Mat Gar Mat Gar Fac Fac Matter Collected 7498 | 270 80 71 485 344 1224 760 664 1076 360 840 156 936 232 . Remotely 472 | . . 10 462 . . . . . . . . . . . Salvage Created 10691 | 126 920 296 552 329 1704 1181 710 1478 503 1124 421 1082 265 . Parts 786 | 7 59 23 69 5 131 73 48 102 47 81 30 86 25 . Haulers Intercepted 7 | . 2 . . . 4 . . . . . 1 . . . Recyclers Shooed 1 | . 1 . . . . . . . . . . . . . Parts Field Recycled . | . . . . . . . . . . . . . . . Retrieved Matter . | . . . . . . . . . . . . . . . Parts Self-Destructed . | . . . . . . . . . . . . . . . Prevented . | . . . . . . . . . . . . . . . Kills | -11 -10 -10 -10 -9 -8 -8 -8 -8 -8 -8 -8 -8 -7 -6 ------- Run | Yrd Mat Min Exi Min Mat Gar Mat Gar Mat Gar Mat Gar Fac Fac Combat Hostiles Destroyed 229 | . 23 7 5 13 31 31 16 29 14 25 4 28 3 . Melee 23 | . 12 6 5 . . . . . . . . . . . Guns 204 | . 10 1 . 13 30 31 16 29 14 25 4 28 3 . AOE 2 | . 1 . . . 1 . . . . . . . . . Classes Destroyed 20 | 2 4 2 3 1 4 . 1 3 . . . . . . Worker 2 | . . . . . 1 . 1 . . . . . . . Builder 4 | . . 1 . . 2 . . . . . 1 . . . Tunneler 4 | 2 . . . 1 1 . . . . . . . . . Hauler 7 | . 2 . . . 4 . . . . . 1 . . . Recycler 3 | 1 1 1 . . . . . . . . . . . . Carrier 1 | . . . . . . . . 1 . . . . . . Operator 3 | . . . . . 3 . . . . . . . . . Turret 1 | . . . 1 . . . . . . . . . . . Watcher 19 | . 3 . . . 5 . 3 . 3 . 2 . 3 . Swarmer 55 | . 3 . . . 7 13 . 8 7 9 . 8 . . Grunt 91 | . 20 6 . . 11 7 7 13 2 9 2 12 2 . Brawler 5 | . . . . . 1 1 2 . 1 . . . . . Duelist 1 | . . . . . . . 1 . . . . . . . Sentry 50 | . . 1 . . 10 10 5 4 4 7 2 7 . . Demolisher 1 | . . . . 1 . . . . . . . . . . Hunter 4 | . . . . . 2 . 1 . . . . 1 . . Programmer 4 | . . . . . . . . 3 . . . . 1 . Behemoth 1 | . . . . . . . . 1 . . . . . . Zionite 7 | . . . 7 . . . . . . . . . . . Assembled 16 | . . . 4 12 . . . . . . . . . . Best Kill Streak 20 | 2 4 3 7 6 13 10 6 9 6 9 3 20 3 . Combat Bots Only 20 | . 3 3 4 5 6 10 6 8 5 9 2 20 2 . Max Kills in Single Turn 3 | 2 1 1 1 1 2 3 3 3 3 2 1 2 1 . Gunslinging 1 | . . . . . . . 1 1 . . . . . . Exploded 1 | . 1 . . . 1 . . . . . . . . . Melee 1 | . 1 1 1 . . . . . . . . . . . Uniques/NPCs Destroyed 4 | . . . 4 . . . . . . . . . . . 8R-AWN (-10/Exiles) EX-HEX (-10/Exiles) EX-BIN (-10/Exiles) EX-DEC (-10/Exiles) Combat | -11 -10 -10 -10 -9 -8 -8 -8 -8 -8 -8 -8 -8 -7 -6 -------- Run | Yrd Mat Min Exi Min Mat Gar Mat Gar Mat Gar Mat Gar Fac Fac Hostile Shots Fired 534 | . 94 45 32 16 84 40 13 73 19 45 2 68 3 . Missed 198 | . 21 18 10 6 33 20 1 30 11 16 . 31 1 . Damage Taken 3635 | . 679 303 470 115 480 197 144 461 79 258 23 404 22 . Core 2658 | . 554 264 292 100 371 153 94 295 57 166 23 270 19 . Absorbed by Shields . | . . . . . . . . . . . . . . . Redirected to Core 1957 | . 383 128 243 49 326 129 63 222 57 130 . 219 8 . Redirected to Shielding 3 | . 3 . . . . . . . . . . . . . Ignored by Resistances 1175 | . 208 87 166 40 164 62 42 145 29 92 6 128 6 . Core Remaining (%) 96 | 100 . . . 96 . . . . . . . 93 98 . Volleys Fired 642 | 3 47 5 45 27 102 70 56 80 31 69 22 69 16 . Largest 2 | 2 2 1 2 2 2 2 2 2 2 2 2 2 2 . Hottest 80 | 80 80 65 60 60 60 60 60 60 60 60 60 60 60 . Shots Fired 1219 | 6 90 5 46 54 201 131 112 160 62 138 44 138 32 . Gun 1219 | 6 90 5 46 54 201 131 112 160 62 138 44 138 32 . Cannon . | . . . . . . . . . . . . . . . Launcher . | . . . . . . . . . . . . . . . Special . | . . . . . . . . . . . . . . . Kinetic 1118 | . . . 46 54 201 131 112 160 62 138 44 138 32 . Thermal 51 | 3 43 5 . . . . . . . . . . . . Explosive . | . . . . . . . . . . . . . . . Electromagnetic 50 | 3 47 . . . . . . . . . . . . . Robot Hit Streak 46 | 5 30 11 12 9 14 27 12 41 38 46 15 17 12 . Robot Miss Streak 4 | . 2 . 3 4 4 1 2 1 1 1 1 1 1 . Penetration Max 2 | . . . 2 1 2 2 2 2 2 2 1 2 . . Secondary Targets 25 | . 1 . . 1 2 2 1 7 2 4 . 5 . . Max Gunslinging Chain 1 | . 1 . . 1 1 1 1 1 1 1 . 1 . . Shots Hit Robots 780 | 5 104 30 47 29 122 52 71 94 46 73 24 68 15 . Core Hits 399 | 4 44 11 26 19 63 39 30 53 19 34 11 38 8 . Critical Kills 156 | . . . 7 9 25 16 14 25 12 17 6 19 6 . Critical Parts Destroyed 240 | . . . 13 6 45 27 29 36 17 28 10 26 3 . Critical Strikes 407 | . . . 23 15 72 43 43 65 29 46 16 46 9 . Destroy 405 | . . . 21 15 72 43 43 65 29 46 16 46 9 . Sever 2 | . . . 2 . . . . . . . . . . . Melee Attacks 103 | . 33 51 19 . . . . . . . . . . . Impact . | . . . . . . . . . . . . . . . Slashing 103 | . 33 51 19 . . . . . . . . . . . Piercing . | . . . . . . . . . . . . . . . Sneak Attacks 3 | . 1 2 . . . . . . . . . . . . Combat Hostiles . | . . . . . . . . . . . . . . . Follow-up Attacks . | . . . . . . . . . . . . . . . Damage Inflicted 17946 | 75 1818 719 1529 558 3001 1422 1528 2181 895 1639 597 1707 277 . Guns 15362 | 75 918 67 649 558 2849 1422 1528 2181 895 1639 597 1707 277 . Cannons . | . . . . . . . . . . . . . . . Explosions 286 | . 134 . . . 152 . . . . . . . . . Melee 2298 | . 766 652 880 . . . . . . . . . . . Ramming . | . . . . . . . . . . . . . . . Kinetic 14302 | . . . 649 558 2849 1422 1528 2181 895 1639 597 1707 277 . Thermal 734 | 35 480 67 . . 152 . . . . . . . . . Explosive . | . . . . . . . . . . . . . . . Electromagnetic 612 | 40 572 . . . . . . . . . . . . . Impact . | . . . . . . . . . . . . . . . Slashing 2298 | . 766 652 880 . . . . . . . . . . . Piercing . | . . . . . . . . . . . . . . . Highest Corruption 1 | . 1 1 1 1 . . . . . . . . . . Average Corruption 1 | . 1 1 1 1 . . . . . . . . . . Corruption Purged . | . . . . . . . . . . . . . . . Corruption Blocked . | . . . . . . . . . . . . . . . Effects 11 | . 2 6 3 . . . . . . . . . . . Message Errors 2 | . 1 1 . . . . . . . . . . . . Matter Fused 4 | . . 4 . . . . . . . . . . . . Heat Flow Errors 2 | . . 1 1 . . . . . . . . . . . Energy Discharges 1 | . . . 1 . . . . . . . . . . . Data Loss (minor) 1 | . 1 . . . . . . . . . . . . . Alerts 1 | . . . 1 . . . . . . . . . . . Overload Shots . | . . . . . . . . . . . . . . . Overflow Damage 134 | . 5 27 21 . 81 . . . . . . . . . Projectiles . | . . . . . . . . . . . . . . . Explosions 81 | . . . . . 81 . . . . . . . . . Melee 53 | . 5 27 21 . . . . . . . . . . . Knockbacks . | . . . . . . . . . . . . . . . Impact . | . . . . . . . . . . . . . . . Kinetic . | . . . . . . . . . . . . . . . Secondary . | . . . . . . . . . . . . . . . Self-Inflicted Damage 24 | . 24 . . . . . . . . . . . . . Shots 1 | . 1 . . . . . . . . . . . . . Rammed . | . . . . . . . . . . . . . . . Targets Rammed . | . . . . . . . . . . . . . . . Kicked . | . . . . . . . . . . . . . . . Crushed . | . . . . . . . . . . . . . . . Highest Temperature 132 | 33 132 60 77 1 16 15 . 1 . 17 1 17 . . Average Temperature 34 | 9 57 37 43 1 10 9 . 1 . 11 1 11 . . Received Heat Transfer 1738 | . 408 246 . 40 225 126 99 180 18 135 18 234 9 . Siege Activations . | . . . . . . . . . . . . . . . Robots Corrupted . | . . . . . . . . . . . . . . . Combat Hostiles . | . . . . . . . . . . . . . . . Parts Fried 3 | . 3 . . . . . . . . . . . . . Impact Corruptions . | . . . . . . . . . . . . . . . Robots Melted . | . . . . . . . . . . . . . . . Combat Hostiles . | . . . . . . . . . . . . . . . Parts Melted 3 | . 1 . 1 . 1 . . . . . . . . . Heat Transferred 1323 | 75 1000 148 . . 100 . . . . . . . . . Parts Sabotaged . | . . . . . . . . . . . . . . . Parts Stolen . | . . . . . . . . . . . . . . . Parts Stripped . | . . . . . . . . . . . . . . . Power Chain Reactions 3 | . 3 . . . . . . . . . . . . . Alert | -11 -10 -10 -10 -9 -8 -8 -8 -8 -8 -8 -8 -8 -7 -6 ------- Run | Yrd Mat Min Exi Min Mat Gar Mat Gar Mat Gar Mat Gar Fac Fac Peak Influence 1476 | 15 398 354 . 39 1203 1476 762 1020 597 1013 425 938 497 120 Initial 684 | . 8 130 . . 12 684 619 79 428 . 425 132 382 120 Average 441 | 4 184 197 . 16 713 1102 393 774 171 682 134 686 400 120 Maximum Alert Level 4 | . 1 1 . . 4 4 3 3 2 3 2 3 2 . Low Security (%) 35 | 100 62 57 . 100 11 . 18 5 79 15 74 4 . 100 Level 1 20 | . 37 42 . . 3 . 47 3 . 7 18 12 54 . Level 2 16 | . . . . . 27 2 27 25 20 19 6 21 45 . Level 3 23 | . . . . . 44 51 6 65 . 57 . 61 . . Level 4 3 | . . . . . 13 46 . . . . . . . . Level 5 . | . . . . . . . . . . . . . . . High Security . | . . . . . . . . . . . . . . . Max Security . | . . . . . . . . . . . . . . . Squads Dispatched 19 | . 9 . . . 5 . 2 . . . 1 . 2 . Investigation 14 | . 9 . . . 1 . 2 . . . 1 . 1 . Extermination 1 | . . . . . . . . . . . . . 1 . Reinforcement 4 | . . . . . 4 . . . . . . . . . Assault . | . . . . . . . . . . . . . . . Garrison . | . . . . . . . . . . . . . . . Intercept . | . . . . . . . . . . . . . . . Searches Triggered . | . . . . . . . . . . . . . . . Construction Impeded 1 | . . . . . 1 . . . . . . . . . Haulers Reinforced . | . . . . . . . . . . . . . . . Active Scanning Responses . | . . . . . . . . . . . . . . . Cargo Convoy Interrupts . | . . . . . . . . . . . . . . . Stealth | -11 -10 -10 -10 -9 -8 -8 -8 -8 -8 -8 -8 -8 -7 -6 --------- Run | Yrd Mat Min Exi Min Mat Gar Mat Gar Mat Gar Mat Gar Fac Fac Distress Signals 6 | . 1 . . . 1 . . . 3 . 1 . . . Communications Jammed . | . . . . . . . . . . . . . . . Distress Signals . | . . . . . . . . . . . . . . . Times Spotted 264 | . 27 7 18 14 39 24 16 31 19 28 6 28 7 . Peak Tracking Total 9 | . 3 2 9 6 6 5 4 8 4 7 3 9 2 . Tactical Retreats 16 | . 1 . 3 4 2 . . 1 1 3 . 1 . . Traps | -11 -10 -10 -10 -9 -8 -8 -8 -8 -8 -8 -8 -8 -7 -6 ------- Run | Yrd Mat Min Exi Min Mat Gar Mat Gar Mat Gar Mat Gar Fac Fac Traps Triggered 7 | . 3 . . . . . . . . 1 . 1 1 1 Indirectly . | . . . . . . . . . . . . . . . Trap Hack Attempts . | . . . . . . . . . . . . . . . Triggered . | . . . . . . . . . . . . . . . Disarmed . | . . . . . . . . . . . . . . . Reprogrammed . | . . . . . . . . . . . . . . . Reused . | . . . . . . . . . . . . . . . Traps Extracted . | . . . . . . . . . . . . . . . Installed . | . . . . . . . . . . . . . . . Triggered . | . . . . . . . . . . . . . . . Machines | -11 -10 -10 -10 -9 -8 -8 -8 -8 -8 -8 -8 -8 -7 -6 ---------- Run | Yrd Mat Min Exi Min Mat Gar Mat Gar Mat Gar Mat Gar Fac Fac Machines Disabled 53 | . 1 . 9 1 15 3 2 2 . 9 3 8 . . Max in Single Turn 7 | . 1 . 1 1 7 1 1 1 . 2 1 2 . . Garrison Access 1 | . . . . . . . . . . . . . 1 . Garrison Relay 7 | . . . . . . 1 . 1 . 3 . 2 . . Machines Repaired . | . . . . . . . . . . . . . . . Machines Dismantled . | . . . . . . . . . . . . . . . Machines Sabotaged . | . . . . . . . . . . . . . . . Overloaded Fab Kills . | . . . . . . . . . . . . . . . Hacking | -11 -10 -10 -10 -9 -8 -8 -8 -8 -8 -8 -8 -8 -7 -6 --------- Run | Yrd Mat Min Exi Min Mat Gar Mat Gar Mat Gar Mat Gar Fac Fac Machines Accessed 66 | . 10 1 1 1 8 1 12 3 7 5 5 4 8 . Terminals 52 | . 8 1 . 1 6 1 9 3 6 5 3 4 5 . Fabricators 2 | . . . . . . . . . . . . . 2 . Repair Stations . | . . . . . . . . . . . . . . . Recycling Units 6 | . 2 . . . 1 . 2 . . . 1 . . . Scanalyzers . | . . . . . . . . . . . . . . . Garrison Access 5 | . . . . . 1 . 1 . 1 . 1 . 1 . Total Hacks 163 | . 16 4 1 1 24 1 34 5 24 8 11 10 24 . Successful 101 | . 11 2 1 1 14 1 21 3 14 5 8 5 15 . Failed 61 | . 5 1 . . 10 . 13 2 10 3 3 5 9 . Catastrophic 11 | . . . . . 1 . 3 . 3 . . 3 1 . Database Lockouts 1 | . . 1 . . . . . . . . . . . . Manual 122 | . 13 5 1 2 21 . 32 . 22 . 6 4 16 . Terminals 142 | . 14 4 . 1 22 1 31 5 23 8 9 10 14 . Fabricators 9 | . . . . . . . . . . . . . 9 . Repair Stations . | . . . . . . . . . . . . . . . Recycling Units 6 | . 2 . . . 1 . 2 . . . 1 . . . Scanalyzers . | . . . . . . . . . . . . . . . Garrison Access 5 | . . . . . 1 . 1 . 1 . 1 . 1 . Terminal Hacks 55 | . 4 2 1 1 5 1 12 3 7 5 4 5 5 . Robot Schematic 1 | . . . . . . . . . . . . . 1 . Robot Analysis 10 | . 2 2 . 1 1 . 4 . . . . . . . Prototype ID Bank 1 | . . . . . 1 . . . . . . . . . Open Door 2 | . . . . . . . . 1 . 1 . . . . Branch Access Points 2 | . 1 . . . 1 . . . . . . . . . Emergency Access Points 3 | . . . . . . . . . 1 1 . 1 . . Terminal Index 1 | . . . . . . . . . . . . . 1 . Fabricator Index 1 | . . . . . . . . . . . . . 1 . Garrison Index 1 | . . . . . . . 1 . . . . . . . Alert Level 3 | . . . . . . . 1 . . . . . 2 . Unreport Threat 16 | . . . . . . . 6 . 6 . 3 1 . . Recall Investigation 1 | . . . . . . . . . . . 1 . . . Registered Components 1 | . . . . . 1 . . . . . . . . . Zone Layout 2 | . 1 . . . 1 . . . . . . . . . Garrison Registry 4 | . . . . . . 1 . 1 . 1 . 1 . . Patrol Navigation 3 | . . . . . . . . 1 . 1 . 1 . . Security Stations 2 | . . . . . . . . . . 1 . 1 . . Derelict Proto ID Bank 1 | . . . 1 . . . . . . . . . . . Fabricator Hacks 6 | . . . . . . . . . . . . . 6 . Load Schematic 3 | . . . . . . . . . . . . . 3 . Build 3 | . . . . . . . . . . . . . 3 . Repair Station Hacks . | . . . . . . . . . . . . . . . Recycling Unit Hacks . | . . . . . . . . . . . . . . . Scanalyzer . | . . . . . . . . . . . . . . . Garrison Access Hacks 5 | . . . . . 1 . 1 . 1 . 1 . 1 . Unlock Access 4 | . . . . . 1 . 1 . 1 . 1 . . . Seal Access 1 | . . . . . . . . . . . . . 1 . Unauthorized Hacks 35 | . 7 . . . 8 . 8 . 6 . 3 . 3 . Terminals 28 | . 5 . . . 7 . 6 . 6 . 2 . 2 . Assimilate 7 | . . . . . 2 . 3 . 2 . . . . . Botnet 13 | . . . . . 5 . 2 . 3 . 1 . 2 . Operators 3 | . . . . . . . 1 . 1 . 1 . . . Search 5 | . 5 . . . . . . . . . . . . . Fabricators 1 | . . . . . . . . . . . . . 1 . Prioritize 1 | . . . . . . . . . . . . . 1 . Repair Stations . | . . . . . . . . . . . . . . . Recycling Units 6 | . 2 . . . 1 . 2 . . . 1 . . . Tunnel 6 | . 2 . . . 1 . 2 . . . 1 . . . Scanalyzers . | . . . . . . . . . . . . . . . Garrison Access . | . . . . . . . . . . . . . . . Data Cores Recovered . | . . . . . . . . . . . . . . . Used . | . . . . . . . . . . . . . . . Hacking Detections 39 | . 2 1 . 1 5 . 9 1 5 3 2 4 6 . Full Trace Events 6 | . 2 . . . 1 . . 1 . 1 . . 1 . Feedback Events . | . . . . . . . . . . . . . . . Feedback Blocked . | . . . . . . . . . . . . . . . Robot Schematics Acquired 1 | . . . . . . . . . . . . . 1 . Robots Built 6 | . . . . . . . . . . . . . 6 . Authchips 3 | . . . . . . . . . . . . . 3 . Time 99 | . . . . . . . . . . . . . 99 . Total Robot Build Rating 24 | . . . . . . . . . . . . . 24 . Part Schematics Acquired . | . . . . . . . . . . . . . . . Parts Built . | . . . . . . . . . . . . . . . Authchips . | . . . . . . . . . . . . . . . Time . | . . . . . . . . . . . . . . . Total Part Build Rating . | . . . . . . . . . . . . . . . Parts Repaired . | . . . . . . . . . . . . . . . Time . | . . . . . . . . . . . . . . . Parts Recycled . | . . . . . . . . . . . . . . . Recycled Matter . | . . . . . . . . . . . . . . . Retrieved Matter . | . . . . . . . . . . . . . . . Retrieved Components . | . . . . . . . . . . . . . . . Parts Scanalyzed . | . . . . . . . . . . . . . . . Part Schematics Acquired . | . . . . . . . . . . . . . . . Parts Damaged . | . . . . . . . . . . . . . . . Bothacking | -11 -10 -10 -10 -9 -8 -8 -8 -8 -8 -8 -8 -8 -7 -6 ------------ Run | Yrd Mat Min Exi Min Mat Gar Mat Gar Mat Gar Mat Gar Fac Fac Used RIF Installer . | . . . . . . . . . . . . . . . Robots Hacked . | . . . . . . . . . . . . . . . Non-combat . | . . . . . . . . . . . . . . . Combat . | . . . . . . . . . . . . . . . Robot Hacks Applied . | . . . . . . . . . . . . . . . Relay Couplers Released 9 | . . . . . . 1 . 1 . 5 . 2 . . Machine Destruction 9 | . . . . . . 1 . 1 . 5 . 2 . . Fabnet Peak Effective % . | . . . . . . . . . . . . . . . Robots Rewired 7 | . . . . . . . . 5 . 2 . . . . Allies Hacked . | . . . . . . . . . . . . . . . Hacks Repelled . | . . . . . . . . . . . . . . . Allies | -11 -10 -10 -10 -9 -8 -8 -8 -8 -8 -8 -8 -8 -7 -6 -------- Run | Yrd Mat Min Exi Min Mat Gar Mat Gar Mat Gar Mat Gar Fac Fac Total Allies 20 | . . 3 . 1 1 . 1 5 1 2 . . 6 . Largest Group 8 | . . 3 3 2 1 1 2 7 8 8 6 3 6 4 Highest-Rated Group 222 | . . 40 40 31 10 10 36 159 169 169 126 46 222 148 Highest-Rated Ally 37 | . . 16 16 31 10 10 26 31 31 31 31 26 37 37 Total Orders 73 | . . 2 4 1 . 9 6 10 10 13 9 8 1 . STAY 42 | . . 1 3 1 . 4 3 5 4 8 8 4 1 . FOLLOW 31 | . . 1 1 . . 5 3 5 6 5 1 4 . . Ally Attacks 71 | . . . 31 2 . . . . . 35 . . 3 . Total Damage 945 | . . . 198 43 . . . . . 630 . . 74 . Kills 7 | . . . 1 . . . . . . 6 . . . . Allies Corrupted . | . . . . . . . . . . . . . . . Allies Melted 1 | . . . . . . . . . . 1 . . . . Intel | -11 -10 -10 -10 -9 -8 -8 -8 -8 -8 -8 -8 -8 -7 -6 ------- Run | Yrd Mat Min Exi Min Mat Gar Mat Gar Mat Gar Mat Gar Fac Fac Robot Analysis Total 10 | . 2 2 . 1 1 . 4 . . . . . . . Derelict Logs Recovered 3 | . . 1 . 2 . . . . . . . . . . Drone Launches . | . . . . . . . . . . . . . . . Drone Recoveries . | . . . . . . . . . . . . . . . Exploration | -11 -10 -10 -10 -9 -8 -8 -8 -8 -8 -8 -8 -8 -7 -6 ------------- Run | Yrd Mat Min Exi Min Mat Gar Mat Gar Mat Gar Mat Gar Fac Fac Turns Passed 7977 | 56 1196 573 775 332 672 322 562 728 695 704 247 493 612 10 Spaces Moved 10601 | 40 973 1036 1080 547 1039 368 910 876 828 889 447 746 796 26 Core 5 | 5 . . . . . . . . . . . . . . Treads . | . . . . . . . . . . . . . . . Legs . | . . . . . . . . . . . . . . . Wheels 752 | 35 717 . . . . . . . . . . . . . Hover . | . . . . . . . . . . . . . . . Flight 9844 | . 256 1036 1080 547 1039 368 910 876 828 889 447 746 796 26 Fastest Speed 34 | 50 34 34 34 39 34 34 37 37 37 37 37 37 37 37 Average Speed 41 | 93 82 34 38 39 34 35 37 37 37 37 37 37 37 37 Slowest Speed 122 | 100 100 34 122 39 39 37 37 37 37 37 37 37 37 37 Overloaded Moves . | . . . . . . . . . . . . . . . Propulsion Burnouts . | . . . . . . . . . . . . . . . Robots Hopped 40 | . . 6 . 5 3 . 8 2 10 . 2 2 2 . Cave-ins Triggered . | . . . . . . . . . . . . . . . Exploration Rate (%) 59 | 5 99 98 85 91 82 59 59 72 50 67 34 72 20 2 Regions Visited 14 Branch Regions 3 Pre-discovered Areas 7 | . 2 1 . . 1 . 2 . . . 1 . . . Known Exits Taken 7 | . 1 1 . . 1 . 1 . 1 . 1 . 1 . Unknown Exits Taken 3 | 1 . . 1 1 . . . . . . . . . . Scrap Searched 2 | . . 1 . 1 . . . . . . . . . . Spaces Dug 32 | . . 6 4 . 3 . 8 . 3 . 6 . 2 . Terrain Destroyed 360 | . 8 6 8 16 114 23 38 31 18 35 17 40 6 . Melee 6 | . . 6 . . . . . . . . . . . . Projectile 245 | . . . 8 15 43 20 35 27 16 28 16 34 3 . AOE 69 | . 8 . . . 61 . . . . . . . . . Terrain Rammed . | . . . . . . . . . . . . . . . Walls Destroyed . | . . . . . . . . . . . . . . . Machines Disabled . | . . . . . . . . . . . . . . . Actions | -11 -10 -10 -10 -9 -8 -8 -8 -8 -8 -8 -8 -8 -7 -6 --------- Run | Yrd Mat Min Exi Min Mat Gar Mat Gar Mat Gar Mat Gar Fac Fac Total 13102 | 49 1204 1141 1369 606 1199 476 1056 1174 1167 1175 498 872 1090 26 Wait 1421 | . 106 28 157 25 27 19 88 166 315 183 30 42 235 . Move 10504 | 39 972 1023 1079 537 1033 367 893 870 807 886 442 739 791 26 Hop 37 | . . 6 . 4 2 . 8 1 10 . 2 2 2 . Pick Up 10 | . 1 1 5 . . . . 3 . . . . . . Fast Attach 33 | 7 4 1 11 1 2 3 . 2 . . . . 2 . Attach 6 | . . . 1 . 2 . . . . . . . 3 . Detach 2 | . . . 1 1 . . . . . . . . . . Swap 18 | . 4 4 9 . 1 . . . . . . . . . Drop 25 | . 1 1 17 1 . 4 . . . . . . 1 . Fire 642 | 3 47 5 45 27 102 70 56 80 31 69 22 69 16 . Melee 103 | . 33 51 19 . . . . . . . . . . . Ram . | . . . . . . . . . . . . . . . Kick . | . . . . . . . . . . . . . . . Crush . | . . . . . . . . . . . . . . . Escape Stasis 54 | . . . . . . . . . . 18 . . 36 . Rewire 29 | . . . . . . . . 24 . 5 . . . . Trap . | . . . . . . . . . . . . . . . Miscellaneous 218 | . 36 21 25 10 30 13 11 28 4 14 2 20 4 . Route ------- -11/Scrapyard -10/Materials (discovered 5 exits: *Mat x3 / *Min x2) -10/Mines (discovered 4 exits: *Mat x2 / *Exi / *Sub) -10/Exiles -9/Mines (discovered 2 exits: *Mat x2) -8/Materials (discovered 4 exits: *Fac x3 / Gar) -8/Garrison (discovered 3 exits: *Mat x3) -8/Materials (discovered 3 exits: *Fac x2 / Gar) -8/Garrison (discovered 4 exits: *Mat x4) -8/Materials (discovered 2 exits: Fac / Gar) -8/Garrison (discovered 3 exits: *Mat x3) -8/Materials -8/Garrison (discovered 3 exits: *Fac x3) -7/Factory (discovered 3 exits: *Fac x2 / *Low) -6/Factory History --------- Turn | Location | Event 1 | -11/Scrapyard | Upgraded with Power slot (x1) 1 | -11/Scrapyard | Upgraded with Propulsion slot (x1) 1 | -11/Scrapyard | Upgraded with Utility slot (x1) 1 | -11/Scrapyard | Upgraded with Weapon slot (x1) 11 | -11/Scrapyard | Discovered new exit (range 16) 57 | -11/Scrapyard | Entered Materials 79 | -10/Materials | Identified exit to Mines 295 | -10/Materials | Discovered new exit (range 9) 312 | -10/Materials | Build established: Mutant 624 | -10/Materials | Discovered new exit (range 15) 754 | -10/Materials | Reached level 2 945 | -10/Materials | Discovered new exit (range 15) 1068 | -10/Materials | Upgraded with Propulsion slot (x1) 1079 | -10/Materials | Upgraded with Utility slot (x1) 1120 | -10/Materials | Reached level 3 1253 | -10/Materials | Entered Mines 1265 | -10/Mines | Learned location of Storage (-9) 1273 | -10/Mines | Assisted by bots powering up and referring to "LRC-V3" 1275 | -10/Mines | Deemed a non-threat by the Exiles lab entrance 1275 | -10/Mines | Discovered new exit (range 5) 1276 | -10/Mines | Met a Derelict bent on vengeance 1276 | -10/Mines | Identified exit to Exiles 1374 | -10/Mines | Discovered new exit (range 12) 1409 | -10/Mines | Discovered new exit (range 5) 1413 | -10/Mines | Identified exit to Materials 1481 | -10/Mines | Central database locked down 1541 | -10/Mines | Identified exit to Subcaves 1597 | -10/Mines | Reached level 4 1619 | -10/Mines | Discovered exit to Materials (range 12) 1623 | -10/Mines | Joined a pair of Derelicts in attacking an 0b10 outpost 1631 | -10/Mines | Upgraded with Utility slot (x1) 1826 | -10/Mines | Entered Exiles 1826 | -10/Exiles | Accompanied by 3 allies 1835 | -10/Exiles | Met 8R-AWN 1842 | -10/Exiles | Met EX-HEX 1853 | -10/Exiles | Met EX-BIN 1856 | -10/Exiles | Aligned with FarCom system 1857 | -10/Exiles | Given EX-Vault access code 1866 | -10/Exiles | Opened EX-Vault 1868 | -10/Exiles | Found Longsword +1 1876 | -10/Exiles | Warned to stay clear of 0b10 Research branches 1886 | -10/Exiles | Met EX-DEC 1903 | -10/Exiles | Discovered new exit (range 15) 2058 | -10/Exiles | Attacked by the Exiles 2163 | -10/Exiles | Destroyed 8R-AWN 2172 | -10/Exiles | Found Prototype Processor 2172 | -10/Exiles | Identified Exp. Targeting Computer 2177 | -10/Exiles | Found Prototype Ballistic Gun 2177 | -10/Exiles | Identified 8R-AWN's Boregun 2229 | -10/Exiles | Found 8R-AWN's Boregun 2358 | -10/Exiles | Destroyed EX-HEX 2377 | -10/Exiles | Destroyed EX-BIN 2387 | -10/Exiles | Destroyed EX-DEC 2483 | -10/Exiles | Build established: Scavenger-Mutant 2601 | -10/Exiles | Entered Mines 2601 | -9/Mines | Accompanied by 2 allies 2641 | -9/Mines | Discovered new exit (range 16) 2698 | -9/Mines | Assembled infested the area 2714 | -9/Mines | Found a damaged Exp. Sensor Array with a note attached 2714 | -9/Mines | Found Prototype Device 2714 | -9/Mines | Identified Exp. Sensor Array 2724 | -9/Mines | Met a Derelict testing a Signal Generator 2802 | -9/Mines | Learned 4 Materials zone layouts 2860 | -9/Mines | Learned Materials garrison access intel 2923 | -9/Mines | Discovered new exit (range 10) 2933 | -9/Mines | Entered Materials 2934 | -8/Materials | Identified exit to Factory 2935 | -8/Materials | Loaded intel: 1 garrison access location 2935 | -8/Materials | Reached level 5 2935 | -8/Materials | Reached level 6 2951 | -8/Materials | Reached level 7 3035 | -8/Materials | Reached level 8 3093 | -8/Materials | Upgraded with Propulsion slot (x1) 3288 | -8/Materials | Reached level 9 3354 | -8/Materials | Discovered exit to Factory (range 3) 3426 | -8/Materials | Reached level 10 3532 | -8/Materials | Discovered exit to Factory (range 8) 3580 | -8/Materials | Upgraded with Utility slot (x1) 3604 | -8/Materials | Identified exit to Garrison 3604 | -8/Materials | Upgraded with Utility slot (x1) 3605 | -8/Materials | Entered Garrison 3605 | -8/Garrison | Accompanied by 1 ally 3608 | -8/Garrison | Triggered checkpoint 3612 | -8/Garrison | Reached level 11 3660 | -8/Garrison | Triggered checkpoint 3698 | -8/Garrison | Destroyed 7 combat bots 3736 | -8/Garrison | Triggered checkpoint 3758 | -8/Garrison | Triggered checkpoint 3763 | -8/Garrison | Triggered checkpoint 3778 | -8/Garrison | Triggered checkpoint 3784 | -8/Garrison | Reached level 12 3808 | -8/Garrison | Destroyed 10 combat bots 3848 | -8/Garrison | Destroyed 8 combat bots 3878 | -8/Garrison | Discovered new exit (range 11) 3885 | -8/Garrison | Upgraded with Utility slot (x1) 3897 | -8/Garrison | Triggered checkpoint 3906 | -8/Garrison | Build established: Scavenger-Scout 3910 | -8/Garrison | Discovered new exit (range 74) 3910 | -8/Garrison | Discovered new exit (range 71) 3910 | -8/Garrison | Discovered new exit (range 27) 3922 | -8/Garrison | Identified exit to Materials 3927 | -8/Garrison | Entered Materials 3927 | -8/Materials | Accompanied by 1 ally 4013 | -8/Materials | Discovered exit to Factory (range 16) 4169 | -8/Materials | Discovered exit to Factory (range 10) 4283 | -8/Materials | Reached level 13 4487 | -8/Materials | Identified exit to Garrison 4489 | -8/Materials | Entered Garrison 4489 | -8/Garrison | Accompanied by 2 allies 4563 | -8/Garrison | Destroyed 8 combat bots 4576 | -8/Garrison | Triggered checkpoint 4589 | -8/Garrison | Triggered checkpoint 4595 | -8/Garrison | Triggered checkpoint 4629 | -8/Garrison | Spotted B-75 Beast 4646 | -8/Garrison | Destroyed B-75 Beast 4666 | -8/Garrison | Triggered checkpoint 4676 | -8/Garrison | Discovered new exit (range 6) 4678 | -8/Garrison | Identified exit to Materials 4724 | -8/Garrison | Discovered exit to Materials (range 9) 4740 | -8/Garrison | Garrison Relay disabled 4786 | -8/Garrison | Upgraded with Utility slot (x2) 4794 | -8/Garrison | Triggered checkpoint 4827 | -8/Garrison | Discovered exit to Materials (range 58) 4827 | -8/Garrison | Discovered exit to Materials (range 20) 4827 | -8/Garrison | Discovered exit to Materials (range 24) 4827 | -8/Garrison | Discovered exit to Materials (range 37) 4859 | -8/Garrison | Reached level 14 4920 | -8/Garrison | Triggered checkpoint 5148 | -8/Garrison | Attempted to access garrison exit controls, blocked by remote lockdown 5217 | -8/Garrison | Entered Materials 5217 | -8/Materials | Accompanied by 7 allies 5486 | -8/Materials | Discovered exit to Factory (range 18) 5884 | -8/Materials | Identified exit to Garrison 5912 | -8/Materials | Entered Garrison 5912 | -8/Garrison | Accompanied by 8 allies 5979 | -8/Garrison | Learned Materials security intel 6000 | -8/Garrison | Triggered checkpoint 6065 | -8/Garrison | Lost 4 allies 6069 | -8/Garrison | Destroyed 9 combat bots 6069 | -8/Garrison | Triggered checkpoint 6114 | -8/Garrison | Triggered checkpoint 6142 | -8/Garrison | Discovered new exit (range 7) 6144 | -8/Garrison | Identified exit to Materials 6178 | -8/Garrison | Triggered checkpoint 6189 | -8/Garrison | Triggered checkpoint 6198 | -8/Garrison | Garrison Relay disabled 6234 | -8/Garrison | Discovered exit to Materials (range 32) 6234 | -8/Garrison | Discovered exit to Materials (range 52) 6234 | -8/Garrison | Discovered exit to Materials (range 25) 6278 | -8/Garrison | Triggered checkpoint 6311 | -8/Garrison | Reached level 15 6428 | -8/Garrison | Attempted to access garrison exit controls, blocked by remote lockdown 6517 | -8/Garrison | Attempted to access garrison exit controls, blocked by remote lockdown 6616 | -8/Garrison | Entered Materials 6616 | -8/Materials | Accompanied by 6 allies 6863 | -8/Materials | Identified exit to Garrison 6863 | -8/Materials | Entered Garrison 6863 | -8/Garrison | Accompanied by 3 allies 6875 | -8/Garrison | Triggered checkpoint 6949 | -8/Garrison | Triggered checkpoint 6951 | -8/Garrison | Triggered checkpoint 6997 | -8/Garrison | Triggered checkpoint 7009 | -8/Garrison | Triggered checkpoint 7049 | -8/Garrison | Triggered checkpoint 7075 | -8/Garrison | Discovered exit to Factory (range 9) 7076 | -8/Garrison | Destroyed 20 combat bots 7107 | -8/Garrison | Garrison Relay disabled 7158 | -8/Garrison | Garrison Relay disabled 7165 | -8/Garrison | Discovered exit to Factory (range 10) 7176 | -8/Garrison | Triggered checkpoint 7193 | -8/Garrison | Learned Factory security intel 7229 | -8/Garrison | Discovered exit to Factory (range 10) 7240 | -8/Garrison | Discovered exit to Factory (range 16) 7240 | -8/Garrison | Discovered exit to Factory (range 67) 7240 | -8/Garrison | Discovered exit to Factory (range 91) 7248 | -8/Garrison | Attempted to access garrison exit controls, blocked by remote lockdown 7307 | -8/Garrison | Attempted to access garrison exit controls, blocked by remote lockdown 7356 | -8/Garrison | Entered Factory 7356 | -7/Factory | Accompanied by 1 ally 7358 | -7/Factory | Reached level 16 7408 | -7/Factory | Discovered new exit (range 15) 7412 | -7/Factory | Discovered new exit (range 13) 7416 | -7/Factory | Identified exit to Factory 7452 | -7/Factory | Identified exit to Lower Caves 7603 | -7/Factory | Upgraded with Utility slot (x1) 7629 | -7/Factory | Discovered exit to Factory (range 12) 7816 | -7/Factory | Fabricated P-60 Hacker (x2) 7849 | -7/Factory | Fabricated P-60 Hacker (x2) 7883 | -7/Factory | Fabricated P-60 Hacker? 7968 | -7/Factory | Entered another Factory area 7968 | -6/Factory | Accompanied by 4 allies 7970 | -6/Factory | Reached level 17 7978 | -6/Factory | Self-destructed Last Messages --------------- 07935_ Field strength at 2. 07936_ Stasis field depleted. 07937_ Hacker 4b triggered Stasis Trap. 07937_ A bubble of rippling energy engulfs the area. 07937_ Field strength at 93. 07937_ Field strength at 86. 07938_ Field strength at 79. 07939_ Hacker 4f triggered Stasis Trap. 07939_ A bubble of rippling energy engulfs the area. 07939_ Field strength at 93. 07966_ Acquired Targeting Computer. LOCATION=FACTORY GOAL=ESCAPE 07970_ Reached level 17. 07978_ Triggered Stasis Trap. 07978_ A bubble of rippling energy engulfs the area. 07978_ Field strength at 95. Map ----- +----------------------------------------------------+ | ?????????????????????????????????????????????????? | | ?????????????????????????????????????????????????? | | ?????????????????????????????????????????????????? | | ?????????????????????????????????????????????????? | | ?????????????????????????????????????????????????? | | ?????????????????????????????????????????????????? | | ?????????????????????????????????????????????????? | | ?????????????????????????????????????????????????? | | ?????????????????????????????????????????????????? | | ?????????????????????????????????????????????????? | | ??????????????????????????????? ?????????????????? | | ??????????????????????k??????????????????????????? | | ????????????????#????????? ??????????????????????? | | ???????????????????????????? ??? ????????????????? | | ??????????????#?????#???###+#+#??#???????????????? | | ????????????????? ? ? ##???#???#?????????? | | ?????????????????? ? ?? #??#??##???????????? | | ????????????????????? ?? #?????#?#??????????? | | ????????? ???? ?? ? ? ? #?##??###?#????????? | | ????????????? ?? ????? #??#??#?#??????????? | | ????????????????##??#??## #???##?##???#??????? | | ???????????? ?? ? ????#?# ##???##????????????? | | ???????????? ???" ????#?# ######?##?#?????#??? | | ??????????R? ??"???"????# # ????? ??????? | | ??????????????""? ??" ### # ""?"? ""???????? | | ?????? ??? ??? ? #?#@ # """" Y"####??? | | ?????????#?##???##?#??#?# # """" """#?##??? | | ??????????############### # """" #???#?? | | ?????????### # p #! """" ##?#??? | | ???????????# # p # """" ##??#?? | | ????????#### #p # ##????# | | ???????????# #p # = ##????# | | ???????????# + + #?????? | | ???????????# # # #?????? | | ????????#??# # # ##????? | | ?????#????## # ####/#########?##??? | | ???????????# # #????????## | | ???????????# # ##??????#?? | | ?????????#?# # #??##?????? | | ??????????## # #?#?##?#??? | | ???????????############## #????###??? | | ??????????#???#???#??##?################????????#? | | ???????????#???#?##?#??????#?????#???#??##???????? | | ????????????###?????#?###?#?#?####?##????#?????#?? | | ??????????????#?##???#####?##???#?##??#?#????????? | | ????????????????????#?#?#???#????#??##?????#?#???? | | ?????????????????#?#?##?#?#??#?#?#????#???#??????? | | ?????????????????????#??##???##????????????#??#??? | | ?????????????????#????###??#????#?????#??????????? | | ????????????????????#??#????##??#??#?????????????? | +----------------------------------------------------+ Best States ------------- Heat Dissipation 61 Energy Generation 28 Energy Capacity 310 Matter Stores 300 Matter Capacity 300 Sight Range 16 Robot Scan Range 24 Terrain Scan Range 18 Terrain Scan Density 610 Armor Coverage 375 Resistance: KI 25 Resistance: TH 20 Resistance: EX 20 Resistance: EM 20 Resistance: I 20 Resistance: S 20 Resistance: P 20 Power Shielding 33 Weapon Cycling 25 Evasion (%) 63 Targeting Accuracy 17 Armor Integrity Analysis 40 Salvage Targeting 4 Offensive Hacking 20 Defensive Hacking 10 Authchip Count 3 Item Schematics ----------------- None Robot Schematics ------------------ P-60 Hacker | -7/Factory | Hacked Fabricated ------------ P-60 Hacker | x2 | -7/Factory | Authchip P-60 Hacker | x2 | -7/Factory | Authchip P-60 Hacker | x2 | -7/Factory | Authchip Alien Tech Used ----------------- None Achievements -------------- None Challenges ------------ None RPGLIKE | -11 -10 -10 -10 -9 -8 -8 -8 -8 -8 -8 -8 -8 -7 -6 --------- Run | Yrd Mat Min Exi Min Mat Gar Mat Gar Mat Gar Mat Gar Fac Fac Levels Raised 16 | . 2 1 . . 6 2 1 1 . 1 . . 1 1 XP Earned 28300 | 4000 3360 1350 350 645 8658 2915 1133 1238 432 1054 147 607 911 1500 XP Spent 26375 | 2000 3450 2470 150 . 4200 2000 1930 7150 125 . . . 2900 . Upgrades 44 | 4 13 6 1 . 3 1 7 6 2 . . . 1 . Power Slot 1 | 1 . . . . . . . . . . . . . . Propulsion Slot 3 | 1 1 . . . 1 . . . . . . . . . Utility Slot 9 | 1 1 1 . . 2 1 . 2 . . . . 1 . Weapon Slot 1 | 1 . . . . . . . . . . . . . . Heat Dissipation 6 | . 6 . . . . . . . . . . . . . Mass Support 2 | . 1 1 . . . . . . . . . . . . Inventory Capacity 3 | . 1 1 . . . . . 1 . . . . . . Sensor Range 2 | . . . . . . . . . 2 . . . . . Terrain Scan Density 6 | . . 3 . . . . 3 . . . . . . . Ranged Accuracy 3 | . . . . . . . . 3 . . . . . . Melee Accuracy 3 | . 3 . . . . . . . . . . . . . Hack Attack % 2 | . . . . . . . 2 . . . . . . . Hack Defense % 2 | . . . . . . . 2 . . . . . . . KI Resistance % 1 | . . . 1 . . . . . . . . . . . Protomatter Created 3739 | . 410 181 114 19 553 371 430 579 212 278 57 488 47 . Integrity Restored 3734 | . 659 379 427 147 509 217 160 461 23 274 40 366 72 . Core 2647 | . 522 296 292 78 370 165 105 295 15 188 20 256 45 . Parts 1087 | . 137 83 135 69 139 52 55 166 8 86 20 110 27 . Protomatter Decayed 2548 | . 98 142 26 54 324 294 299 430 203 263 42 351 22 . Game ------ Seed SniperAntimatterVibroblade Manual? 0 Play Time 01:43:25 Cumulative 257.5 hours Start 2025.03.17 @ 06:53:45 End 2025.03.18 @ 07:56:31 Sessions 3 Manual Loads 0 Difficulty Adventurer Special Mode Winter2019/RPGLIKE Game No. 108 Rogue 0 Adventurer 108 Explorer 0 Win Type - Total 10 Types 2/1/3/2/1/0/0/0/1 Lore% 80 Gallery% 74 Achievement% 78 Wizard Run 0 Options --------- Layout 2 ASCII 0 Keyboard 0 Movement Numpad Keybinds 0 Fullscreen 2 Font 24/Smallcaps Map View 50x44 Zoom Use 0% Tactical HUD 1 Map Filters NONE Filters NONE Steam 1 RUN: 009e7bde-b5a9-42df-baa5-5c98c4179d6a